Cogmind - Beta 17.1 @@@ ROGUE MODE // 2026.08.26 @ 16:24:05 Player: Mogmind Result: Destroyed by X-67 Chaingunner with Heavy Machine Gun Performance ------------- Evolutions (4) 2000 Regions Visited (7) 1400 Robots Destroyed (88) 440 Value Destroyed (2847) 2847 Prototype IDs (7) 140 Alien Tech Used (0) 0 Bonus (706) 706 TOTAL SCORE: 7533 Bonus ------- High Alert Combat Kills 37 Follower Combat Kills 302 Entered DSFs 500 Friendly Fire -133 Cogmind --------- Core Integrity 0/850 Matter 160/300 Energy 99/100 System Corruption 4% Temperature Cool (0) Movement Core (50) Location -6/Factory Parts ------- > --- POWER (1) -------- (None) > --- PROPULSION (6) --- (None) > --- UTILITY (5) ------ (None) > --- WEAPON (3) ------- (None) > --- INVENTORY (5) ---- Light Nuclear Core Axe Peak State ------------ > --- POWER ------------ Heavy Ion Engine > --- PROPULSION ------- Improved Aluminum Leg Carbon-fiber Leg Carbon-fiber Leg Carbon-fiber Leg Carbon-fiber Leg Improved Carbon-fiber Leg > --- UTILITY ---------- Improved Heat Sink Medium Storage Unit Triangulator Advanced Sensor Array Improved Signal Interpreter > --- WEAPON ----------- Heavy Plasma Cannon Gauss Rifle Gauss Cannon > --- INVENTORY -------- Light Nuclear Core Light Nuclear Core Aluminum Leg Improved Aluminum Leg VSS Leg Improved Heavy Armor Plating Beamcaster Flak Cannon Heavy Missile Launcher [Rating: 54] Favorites ----------- Power Heavy Ion Engine Engine Heavy Ion Engine Power Core Light Nuclear Core Propulsion Aluminum Leg Leg Aluminum Leg Wheel Compact Wheel Flight Unit VTOL Module Utility Medium Storage Unit Device Improved Heat Sink Storage Medium Storage Unit Processor Improved Signal Interpreter Protection Medium Reactive Plating Weapon Advanced Beam Cannon Energy Gun Medium Laser Energy Cannon Advanced Beam Cannon Ballistic Gun High-powered Shotgun Ballistic Cannon Light Cannon Launcher Mini Grenade Launcher Slashing Weapon Axe Build | -11 -10 -9 -9 -8 -7 -7 -6 ------- Run | Yrd Mat Mat Sto Mat Fac DSF Fac Slots Evolved 8 | . . 2 . 2 2 . 2 Power . | . . . . . . . . Propulsion 4 | . . 2 . 1 1 . . Utility 3 | . . . . 1 1 . 1 Weapon 1 | . . . . . . . 1 Parts Attached 91 | 7 8 5 19 17 1 4 30 Power 12 | 2 2 1 2 3 . . 2 Engine 9 | 2 2 1 2 1 . . 1 Core 3 | . . . . 2 . . 1 Reactor . | . . . . . . . . Propulsion 33 | 2 2 2 8 8 . 4 7 Treads . | . . . . . . . . Leg 30 | 2 2 2 8 8 . 4 4 Wheel 1 | . . . . . . . 1 Hover . | . . . . . . . . Flight 2 | . . . . . . . 2 Utility 21 | 1 3 . 4 4 1 . 8 Device 8 | . 1 . 2 1 . . 4 Storage 4 | 1 2 . 1 . . . . Processor 2 | . . . . . 1 . 1 Hackware . | . . . . . . . . Protection 7 | . . . 1 3 . . 3 Artifact . | . . . . . . . . Weapon 25 | 2 1 2 5 2 . . 13 Energy Gun 7 | 2 . . . 1 . . 4 Energy Cannon 4 | . . 1 1 . . . 2 Ballistic Gun 9 | . . 1 3 1 . . 4 Ballistic Cannon 3 | . 1 . . . . . 2 Launcher 1 | . . . 1 . . . . Special Weapon . | . . . . . . . . Impact Weapon . | . . . . . . . . Slashing Weapon 1 | . . . . . . . 1 Piercing Weapon . | . . . . . . . . Special Melee Weapon . | . . . . . . . . Unidentified Prototypes 3 | . . . 3 . . . . Parts Lost 26 | . 2 1 1 2 . . 20 Power 3 | . 1 . . 1 . . 1 Propulsion 11 | . . . . 1 . . 10 Utility 7 | . 1 . 1 . . . 5 Weapon 5 | . . 1 . . . . 4 Highest Loss Streak 6 | . 2 1 1 1 . . 6 To Critical Strikes 1 | . . . . . . . 1 Average Backups 9 | 3 9 9 9 9 9 10 8 Power 1 | . . . . 1 2 2 2 Propulsion 3 | 2 5 4 4 2 2 2 2 Utility 1 | . . 1 2 1 . . . Weapon 3 | . 2 3 3 3 4 6 3 Tool/Special . | . . . . . . . . Unused Backups 21 | . 5 1 7 2 . 1 5 Power 2 | . . . . . . . 2 Propulsion 7 | . 3 1 2 . . 1 . Utility 2 | . 1 . 1 . . . . Weapon 10 | . 1 . 4 2 . . 3 Tool/Special . | . . . . . . . . Average Slot Usage (%) 98 | . 98 99 99 96 99 100 97 Engine 8 | . 14 11 11 4 7 7 5 Leg 38 | . 28 43 43 45 45 46 36 Device 10 | . 6 . 7 6 7 7 16 Storage 10 | . 19 22 11 9 7 7 5 Processor 2 | . . . . . 7 7 6 Protection 3 | . . . 3 9 7 7 2 Energy Gun 3 | . 16 2 . 1 . . 1 Energy Cannon 7 | . . 4 10 8 7 7 7 Ballistic Gun 6 | . . 7 10 7 7 7 5 Ballistic Cannon 2 | . 11 6 . . . . 1 Peak Build Rating 54 | 6 8 13 21 29 32 39 54 Average Rating 29 | 4 7 11 13 26 31 34 48 On Entrance 18 | . 6 8 13 21 28 32 39 Avg Prop Armor Cover (%) 1 | . . . . . . . 1 Naked Turns 12 | . . . . . . . 12 Heaviest Build 59 | 14 25 26 28 46 46 46 59 Greatest Support 95 | 20 20 40 50 62 67 82 95 Greatest Overweight (x) 3 | 3 1 . . . . . 2 Average Overweight (x) . | . . . . . . . . Largest Inventory Capacity 25 | 8 10 10 25 10 10 10 10 Average Capacity 9 | 7 9 10 10 10 10 10 9 Most Carried 10 | 6 10 10 10 10 10 10 10 Average Carried 9 | 3 9 9 9 9 9 10 9 Final Capacity 10 | 8 10 10 10 10 10 10 5 Final Carried 10 | 6 10 10 10 10 10 10 2 Class Distribution -------------------- 34% | Scavenger-Mutant 32% | Mutant 12% | Tank 8% | Skirmisher 6% | Commander-Mutant 4% | Scavenger-Skirmisher Dominant Class ---------------- Mutant | -10/Materials Scavenger-Mutant | -9/Materials Scavenger-Mutant | -9/Storage Scavenger-Mutant | -8/Materials Scavenger-Mutant | -7/Factory Mutant | -7/DSF Tank | -6/Factory Resources | -11 -10 -9 -9 -8 -7 -7 -6 ----------- Run | Yrd Mat Mat Sto Mat Fac DSF Fac Matter Collected 1837 | 208 257 217 388 340 . . 427 Remotely . | . . . . . . . . Salvage Created 3137 | . 378 301 703 864 . . 891 Parts 169 | . 27 16 51 45 . . 30 Haulers Intercepted . | . . . . . . . . Recyclers Shooed 2 | . . 1 . 1 . . . Parts Field Recycled 2 | . . . . . . . 2 Retrieved Matter 15 | . . . . . . . 15 Parts Self-Destructed . | . . . . . . . . Prevented . | . . . . . . . . Parts Restored . | . . . . . . . . Kills | -11 -10 -9 -9 -8 -7 -7 -6 ------- Run | Yrd Mat Mat Sto Mat Fac DSF Fac Combat Hostiles Destroyed 79 | . 14 7 21 22 . . 15 Melee 3 | . . . . . . . 3 Guns 30 | . 6 2 5 10 . . 7 Cannons 36 | . 8 5 10 9 . . 4 AOE 8 | . . . 5 3 . . . Classes Destroyed 11 | . 5 1 3 1 . . 1 Worker 3 | . 1 . . 1 . . 1 Builder 1 | . 1 . . . . . . Recycler 4 | . 1 . . 1 . . 2 Swarmer 24 | . 9 . 3 8 . . 4 Grunt 35 | . 5 5 10 11 . . 4 Brawler 2 | . . . 1 . . . 1 Duelist 1 | . . . 1 . . . . Protector 1 | . . . 1 . . . . Sentry 10 | . . 2 5 2 . . 1 Hunter 1 | . . . . 1 . . . Programmer 5 | . . . . . . . 5 Thug 1 | . . . 1 . . . . Best Kill Streak 9 | . 9 2 7 7 . . 5 Combat Bots Only 7 | . 6 2 7 7 . . 3 Max Kills in Single Turn 5 | . 2 1 5 2 . . 2 Gunslinging 1 | . . . . . . . 1 Exploded 5 | . . . 5 2 . . . Melee 1 | . . . . . . . 1 Uniques/NPCs Destroyed . | . . . . . . . . Combat | -11 -10 -9 -9 -8 -7 -7 -6 -------- Run | Yrd Mat Mat Sto Mat Fac DSF Fac Hostile Shots Fired 583 | . 68 23 66 87 . 3 336 Missed 173 | . 20 9 22 19 . 1 102 Hits 410 | . 48 14 44 68 . 2 234 Melee 12 | . . . 1 . . . 11 Projectile 398 | . 48 14 43 68 . 2 223 Critical Strikes 14 | . 1 1 . 2 . . 10 Damage Taken 6478 | . 486 200 661 849 . 70 4212 Core 1296 | . 157 30 125 109 . . 875 Absorbed by Shields 50 | . . . . . . . 50 Ignored by Resistances 91 | . . . . 60 . 31 . Regen/Repaired (Parts) 69 | . . . 69 . . . . Core Remaining (%) 75 | 100 37 . 61 80 . 100 . Volleys Fired 184 | . 27 17 43 55 . . 42 Largest 3 | . 2 2 2 2 . . 3 Hottest 202 | . 80 91 91 131 . . 202 Shots Fired 372 | . 54 31 76 103 . . 108 Gun 198 | . 27 15 33 52 . . 71 Cannon 168 | . 27 16 40 48 . . 37 Launcher 6 | . . . 3 3 . . . Special . | . . . . . . . . Kinetic 156 | . 27 19 33 36 . . 41 Thermal 210 | . 27 12 40 64 . . 67 Explosive 6 | . . . 3 3 . . . Electromagnetic . | . . . . . . . . Robot Hit Streak 17 | . 7 14 12 17 . . 7 Robot Miss Streak 5 | . 5 1 3 3 . . 3 Penetration Max . | . . . . . . . . Secondary Targets 2 | . . . . . . . 2 Max Gunslinging Chain 1 | . . . . . . . 1 Shots Hit Robots 257 | . 31 24 44 73 . . 85 Core Hits 143 | . 19 10 37 42 . . 35 Critical Kills 2 | . . . 2 . . . . Critical Parts Destroyed . | . . . . . . . . Critical Strikes 8 | . . . 2 . . . 6 Burn 3 | . . . . . . . 3 Meltdown 1 | . . . 1 . . . . Destroy 1 | . . . 1 . . . . Sever 3 | . . . . . . . 3 Melee Attacks 29 | . . . . . . . 29 Impact . | . . . . . . . . Slashing 29 | . . . . . . . 29 Piercing . | . . . . . . . . Sneak Attacks 2 | . . . . . . . 2 Combat Hostiles . | . . . . . . . . Follow-up Attacks . | . . . . . . . . Damage Inflicted 6540 | . 506 429 1531 1731 . . 2343 Guns 2466 | . 227 190 312 674 . . 1063 Cannons 2214 | . 279 216 451 758 . . 510 Explosions 1065 | . . . 766 299 . . . Melee 770 | . . . . . . . 770 Ramming 25 | . . 23 2 . . . . Kinetic 1975 | . 279 272 312 455 . . 657 Thermal 2705 | . 227 134 451 977 . . 916 Explosive 1065 | . . . 766 299 . . . Electromagnetic . | . . . . . . . . Impact . | . . . . . . . . Slashing 770 | . . . . . . . 770 Piercing . | . . . . . . . . Highest Corruption 4 | . 4 . . . . . 4 Average Corruption 2 | . 3 . . . . . 2 Corruption Purged . | . . . . . . . . Corruption Blocked . | . . . . . . . . Effects 19 | . 3 . . . . . 16 Message Errors 5 | . 1 . . . . . 4 Matter Fused 9 | . 2 . . . . . 7 Heat Flow Errors 1 | . . . . . . . 1 Energy Discharges 1 | . . . . . . . 1 Data Loss (minor) 1 | . . . . . . . 1 Data Loss (major) 2 | . . . . . . . 2 Overload Shots . | . . . . . . . . Overflow Damage 47 | . . . 10 31 . . 6 Projectiles 29 | . . . 10 13 . . 6 Explosions 18 | . . . . 18 . . . Melee . | . . . . . . . . Knockbacks 3 | . 1 2 . . . . . Impact 1 | . . 1 . . . . . Kinetic 2 | . 1 1 . . . . . Secondary . | . . . . . . . . Self-Inflicted Damage 103 | . . . 74 29 . . . Shots 4 | . . . 3 1 . . . Rammed 1 | . . . . . . . 1 Targets Rammed 4 | . . 2 1 . . . 1 Kicked 3 | . . 2 1 . . . . Crushed . | . . . . . . . . Highest Temperature 391 | . 269 195 222 342 . . 391 Average Temperature 91 | . 77 69 51 144 . . 90 Received Heat Transfer 1558 | . 135 111 153 387 . . 772 Effects 5 | . 2 . . 2 . . 1 Energy Bleed 2 | . 2 . . . . . . Interference 2 | . . . . 2 . . . Matter Decay 1 | . . . . . . . 1 Siege Activations . | . . . . . . . . Martial Activations . | . . . . . . . . Shielding Activations . | . . . . . . . . Robots Disrupted . | . . . . . . . . Combat Hostiles . | . . . . . . . . Robots Corrupted . | . . . . . . . . Combat Hostiles . | . . . . . . . . Parts Fried . | . . . . . . . . Impact Corruptions . | . . . . . . . . Robots Melted 2 | . . . 1 . . . 1 Combat Hostiles 2 | . . . 1 . . . 1 Parts Melted 7 | . . . 2 . . . 5 Heat Transferred 5274 | . 666 259 765 1776 . . 1808 Parts Sabotaged . | . . . . . . . . Parts Stolen . | . . . . . . . . Parts Stripped . | . . . . . . . . Power Chain Reactions . | . . . . . . . . Alert | -11 -10 -9 -9 -8 -7 -7 -6 ------- Run | Yrd Mat Mat Sto Mat Fac DSF Fac Maximum Alert Level 2 | . . . 1 2 . . . Low Security (%) 86 | 100 100 100 91 10 100 100 100 Level 1 9 | . . . 8 58 . . . Level 2 4 | . . . . 31 . . . Level 3 . | . . . . . . . . Level 4 . | . . . . . . . . Level 5 . | . . . . . . . . High Security . | . . . . . . . . Max Security . | . . . . . . . . Peak Influence 463 | . 191 135 354 463 199 86 198 Initial 199 | . . 59 44 145 199 86 44 Average 111 | . 116 71 127 323 160 86 39 Influence Increases 2896 | . 432 196 1014 664 5 . 585 Destroy 0b10 Robot/C 1760 | . 280 140 600 440 . . 300 Destroy 0b10 Robot/NC 55 | . 15 . 15 10 . . 15 Destroy Leader 404 | . 60 40 164 70 . . 70 Allied During Kill 119 | . . . 119 . . . . Successful Hack 94 | . . . 37 28 5 . 24 Disable Machine 135 | . 15 . 60 15 . . 45 Destroy Structure 59 | . 2 1 19 26 . . 11 Partial Spotted 15 | . . . . 15 . . . Lose Combat Pursuer 255 | . 60 15 . 60 . . 120 Influence Decreases 2759 | . 292 231 773 571 320 38 534 Entered New Map 663 | . . 81 61 201 240 38 42 Time Decay 1616 | . 272 140 482 350 80 . 292 Lost Part 260 | . 20 10 10 20 . . 200 Lost Ally 220 | . . . 220 . . . . Squads Dispatched 21 | . 2 1 5 2 . . 11 Investigation 7 | . 2 . 1 1 . . 3 Extermination 5 | . . . . . . . 5 Reinforcement 7 | . . 1 2 1 . . 3 Assault 2 | . . . 2 . . . . Garrison . | . . . . . . . . Intercept . | . . . . . . . . Searches Triggered . | . . . . . . . . Construction Impeded . | . . . . . . . . Haulers Reinforced . | . . . . . . . . Active Scanning Responses . | . . . . . . . . Cargo Convoy Interrupts . | . . . . . . . . Stealth | -11 -10 -9 -9 -8 -7 -7 -6 --------- Run | Yrd Mat Mat Sto Mat Fac DSF Fac Distress Signals 11 | . 1 1 2 7 . . . Communications Jammed . | . . . . . . . . Distress Signals . | . . . . . . . . Times Spotted 150 | . 23 14 36 43 . . 34 Peak Tracking Total 10 | . 6 4 10 9 . 1 5 Tactical Retreats 12 | . 2 1 . 3 . . 6 Traps | -11 -10 -9 -9 -8 -7 -7 -6 ------- Run | Yrd Mat Mat Sto Mat Fac DSF Fac Traps Triggered 9 | . 4 . 1 . . . 4 Indirectly . | . . . . . . . . Trap Hack Attempts . | . . . . . . . . Triggered . | . . . . . . . . Disarmed . | . . . . . . . . Reprogrammed . | . . . . . . . . Reused . | . . . . . . . . Traps Extracted . | . . . . . . . . Installed . | . . . . . . . . Triggered . | . . . . . . . . Machines | -11 -10 -9 -9 -8 -7 -7 -6 ---------- Run | Yrd Mat Mat Sto Mat Fac DSF Fac Machines Disabled 9 | . 1 . 4 1 . . 3 Max in Single Turn 1 | . 1 . 1 1 . . 1 Garrison Access 1 | . . . 1 . . . . Machines Repaired . | . . . . . . . . Machines Dismantled . | . . . . . . . . Machines Sabotaged . | . . . . . . . . Overloaded Fab Kills . | . . . . . . . . Hacking | -11 -10 -9 -9 -8 -7 -7 -6 --------- Run | Yrd Mat Mat Sto Mat Fac DSF Fac Machines Accessed 38 | . 5 1 14 6 1 . 11 Terminals 29 | . 5 1 11 4 1 . 7 Fabricators 1 | . . . . . . . 1 Repair Stations 1 | . . . 1 . . . . Recycling Units 2 | . . . 1 1 . . . Scanalyzers 3 | . . . . . . . 3 Garrison Access 2 | . . . 1 1 . . . Total Hacks 65 | . 10 4 23 10 1 . 17 Successful 35 | . 4 2 16 4 1 . 8 Failed 30 | . 6 2 7 6 . . 9 Catastrophic 9 | . 1 . 1 3 . . 4 Database Lockouts . | . . . . . . . . Manual 12 | . 6 3 2 1 . . . Terminals 50 | . 10 4 17 7 1 . 11 Fabricators 2 | . . . . . . . 2 Repair Stations 3 | . . . 3 . . . . Recycling Units 3 | . . . 2 1 . . . Scanalyzers 4 | . . . . . . . 4 Garrison Access 3 | . . . 1 2 . . . Terminal Hacks 25 | . 4 2 11 3 1 . 4 Record 1 | . . . . . . . 1 Part Schematic 2 | . . . 2 . . . . Robot Analysis 1 | . . . . 1 . . . Prototype ID Bank 2 | . . 1 1 . . . . Open Door 4 | . . . 4 . . . . Open DSF 3 | . . . . . 1 . 2 Emergency Access Points 3 | . 1 . . 1 . . 1 Alert Level 4 | . 1 . 2 1 . . . Locate Traps 3 | . 1 1 1 . . . . Registered Components 1 | . . . 1 . . . . Zone Layout 1 | . 1 . . . . . . Fabricator Hacks 2 | . . . . . . . 2 Load Schematic 1 | . . . . . . . 1 Build 1 | . . . . . . . 1 Repair Station Hacks 2 | . . . 2 . . . . Scan Component 1 | . . . 1 . . . . Repair 1 | . . . 1 . . . . Recycling Unit Hacks 3 | . . . 2 1 . . . Report Inventory 2 | . . . 1 1 . . . Retrieve Components 1 | . . . 1 . . . . Scanalyzer 2 | . . . . . . . 2 Insert Component 1 | . . . . . . . 1 Retrieve Study 1 | . . . . . . . 1 Garrison Access Hacks 1 | . . . 1 . . . . Seal Access 1 | . . . 1 . . . . Unauthorized Hacks . | . . . . . . . . Terminals . | . . . . . . . . Fabricators . | . . . . . . . . Repair Stations . | . . . . . . . . Recycling Units . | . . . . . . . . Scanalyzers . | . . . . . . . . Garrison Access . | . . . . . . . . Data Cores Recovered . | . . . . . . . . Used . | . . . . . . . . Hacking Detections 28 | . 4 1 7 6 1 . 9 Full Trace Events 4 | . . . 1 1 . . 2 Feedback Events . | . . . . . . . . Feedback Blocked . | . . . . . . . . Robot Schematics Acquired . | . . . . . . . . Robots Built . | . . . . . . . . Authchips . | . . . . . . . . Time . | . . . . . . . . Total Robot Build Rating . | . . . . . . . . Part Schematics Acquired 2 | . . . 2 . . . . Parts Built 2 | . . . . . . . 2 Authchips . | . . . . . . . . Time 62 | . . . . . . . 62 Total Part Build Rating 4 | . . . . . . . 4 Part Studies Acquired 1 | . . . . . . . 1 Parts Repaired 1 | . . . 1 . . . . Time 26 | . . . 26 . . . . Parts Recycled . | . . . . . . . . Recycled Matter . | . . . . . . . . Retrieved Matter . | . . . . . . . . Retrieved Components 3 | . . . 3 . . . . Parts Scanalyzed 1 | . . . . . . . 1 Part Schematics Acquired . | . . . . . . . . Parts Damaged . | . . . . . . . . Bothacking | -11 -10 -9 -9 -8 -7 -7 -6 ------------ Run | Yrd Mat Mat Sto Mat Fac DSF Fac Used RIF Installer . | . . . . . . . . Robots Hacked . | . . . . . . . . Non-combat . | . . . . . . . . Combat . | . . . . . . . . Robot Hacks Applied . | . . . . . . . . Relay Couplers Released . | . . . . . . . . Fabnet Peak Effective % . | . . . . . . . . Robots Rewired . | . . . . . . . . Allies Hacked . | . . . . . . . . Hacks Repelled . | . . . . . . . . Allies | -11 -10 -9 -9 -8 -7 -7 -6 -------- Run | Yrd Mat Mat Sto Mat Fac DSF Fac Total Allies 12 | . . . 12 . . . . Largest Group 10 | . . . 10 . . . . Highest-Rated Group 88 | . . . 88 . . . . Highest-Rated Ally 31 | . . . 31 . . . . Total Orders . | . . . . . . . . Ally Attacks 105 | . . . 105 . . . . Total Damage 1026 | . . . 1026 . . . . Kills 12 | . . . 12 . . . . Allies Corrupted . | . . . . . . . . Allies Melted . | . . . . . . . . Intel | -11 -10 -9 -9 -8 -7 -7 -6 ------- Run | Yrd Mat Mat Sto Mat Fac DSF Fac Active Infowar (turns) 2645 | . 353 . 838 . . . 1454 Sensors 2292 | . . . 838 . . . 1454 Terrain 353 | . 353 . . . . . . Triangulation 733 | . . . . . . . 733 Robot Analysis Total 1 | . . . . 1 . . . Derelict Logs Recovered . | . . . . . . . . Drone Launches . | . . . . . . . . Drone Recoveries . | . . . . . . . . Exploration | -11 -10 -9 -9 -8 -7 -7 -6 ------------- Run | Yrd Mat Mat Sto Mat Fac DSF Fac Turns Passed 5847 | 82 762 287 1241 795 173 58 2449 Spaces Moved 3462 | 50 447 157 788 416 146 43 1415 Core 30 | 5 . . . . . . 25 Treads . | . . . . . . . . Legs 3369 | 45 447 157 788 416 146 43 1327 Wheels 63 | . . . . . . . 63 Hover . | . . . . . . . . Flight . | . . . . . . . . Fastest Speed 50 | 50 120 120 120 112 115 115 50 Average Speed 121 | 134 140 120 120 114 115 115 117 Slowest Speed 200 | 200 190 120 120 120 115 115 181 Overloaded Moves . | . . . . . . . . Propulsion Burnouts . | . . . . . . . . Robots Hopped . | . . . . . . . . Potential Cave-ins . | . . . . . . . . Cave-ins Triggered . | . . . . . . . . Exploration Rate (%) 37 | 3 64 17 89 49 4 38 35 Regions Visited 7 Branch Regions 1 Pre-discovered Areas . | . . . . . . . . Known Exits Taken 1 | . . . . . 1 . . Unknown Exits Taken 5 | 1 1 1 1 1 . . . Scrap Searched . | . . . . . . . . Spaces Dug 5 | . . . . . . . 5 Terrain Destroyed 56 | . . . 27 19 . . 10 Melee 5 | . . . . . . . 5 Projectile 6 | . . . 1 . . . 5 AOE 45 | . . . 26 19 . . . Terrain Rammed . | . . . . . . . . Walls Destroyed . | . . . . . . . . Machines Disabled . | . . . . . . . . Actions | -11 -10 -9 -9 -8 -7 -7 -6 --------- Run | Yrd Mat Mat Sto Mat Fac DSF Fac Total 4717 | 62 530 225 1011 631 151 53 2054 Wait 817 | . 29 36 124 122 . 3 503 Move 3455 | 49 446 156 787 415 145 42 1415 Hop . | . . . . . . . . Pick Up 48 | 6 10 4 8 6 3 . 11 Fast Attach 27 | 5 3 2 4 4 . . 9 Attach 20 | 1 1 2 1 3 2 . 10 Detach 3 | . . 1 . 1 . . 1 Swap 59 | 1 5 1 19 13 . 4 16 Drop 67 | . 9 4 20 12 1 4 17 Fire 184 | . 27 17 43 55 . . 42 Melee 29 | . . . . . . . 29 Ram 1 | . . . . . . . 1 Kick 3 | . . 2 1 . . . . Crush . | . . . . . . . . Escape Stasis . | . . . . . . . . Rewire 4 | . . . 4 . . . . Trap . | . . . . . . . . Miscellaneous . | . . . . . . . . Route ------- -11/Scrapyard -10/Materials (discovered 3 exits: *Mat x2 / [*Min]) -9/Materials -9/Storage -8/Materials -7/Factory -7/DSF -6/Factory History --------- Turn | Location | Event 2 | -11/Scrapyard | Met Revision 17 21 | -11/Scrapyard | Discovered new exit (range 15) 83 | -11/Scrapyard | Entered Materials 317 | -10/Materials | Build established: Mutant 354 | -10/Materials | Discovered new exit (range 14) 610 | -10/Materials | Discovered new exit (range 16) 639 | -10/Materials | Core integrity fell below 50% 814 | -10/Materials | Discovered new exit (range 16) 845 | -10/Materials | Entered another Materials area 845 | -9/Materials | Evolved 2 slots: Propulsion x2 972 | -9/Materials | Discovered new exit (range 16) 1132 | -9/Materials | Entered Storage 1220 | -9/Storage | Assisted by bots powering up and referring to "LRC-V3" 1444 | -9/Storage | Repaired Aluminum Leg 1473 | -9/Storage | Lost 3 allies 1516 | -9/Storage | Build established: Commander-Mutant 1809 | -9/Storage | Lost 3 allies 2103 | -9/Storage | Build established: Scavenger-Mutant 2238 | -9/Storage | Met a pair of Derelict thieves 2306 | -9/Storage | Destroyed 7 combat bots 2322 | -9/Storage | Discovered new exit (range 15) 2373 | -9/Storage | Entered Materials 2373 | -8/Materials | Evolved 2 slots: Propulsion x1, Utility x1 2963 | -8/Materials | Destroyed 7 combat bots 3142 | -8/Materials | Discovered new exit (range 16) 3168 | -8/Materials | Entered Factory 3168 | -7/Factory | Evolved 2 slots: Propulsion x1, Utility x1 3340 | -7/Factory | Identified exit to DSF 3341 | -7/Factory | Entered DSF 3385 | -7/DSF | Discovered new exit (range 12) 3398 | -7/DSF | Identified exit to Factory 3399 | -7/DSF | Entered Factory 3399 | -6/Factory | Evolved 2 slots: Utility x1, Weapon x1 3525 | -6/Factory | Fabricated Imp. Aluminum Leg (x2) 3707 | -6/Factory | Build established: Tank 4465 | -6/Factory | Build established: Skirmisher 4958 | -6/Factory | Build established: Mutant 5154 | -6/Factory | Lost 4 parts (3n1w) 5658 | -6/Factory | Lost 3 parts (2n1u) 5717 | -6/Factory | Lost 5 parts (3n2u) 5835 | -6/Factory | Core integrity fell below 50% 5836 | -6/Factory | Released all parts (6) 5842 | -6/Factory | Core integrity fell below 20% 5848 | -6/Factory | Destroyed by X-67 Chaingunner with Heavy Machine Gun Last Messages --------------- 05831_ Coil Gun destroyed. 05833_ Slammed into L-41 Fighter. 05833_ Destabilizing: Core damaged (-42). 05834_ Overheating: Matter decay (-34). 05834_ VTOL Module severed. 05835_ K-01 Serf collects debris. 05836_ Released System Guard. 05836_ Released Imp. Signal Interpreter. 05836_ Released Beamcaster. 05836_ Released VTOL Module. 05836_ Released Mic. Nuclear Core. 05836_ Released Plasma Rifle. 05838_ K-01 Serf collects debris. 05838_ U-05 Engineer lays Concrete. 05842_ K-01 Serf collects debris. 05843_ U-05 Engineer lays Concrete. 05845_ K-01 Serf collects debris. 05845_ U-05 Engineer lays Concrete. 05848_ K-01 Serf collects debris. 05848_ U-05 Engineer lays Concrete. Map ----- +----------------------------------------------------+ | ????????????????????# #???# #? | | ????????????????????# ##### #? | | ????????????????????# + ## | | ????????????????????# %## ## | | ????????????????????# #" ## | | ??????????#* ???#???# ## | | ??????????# ??# ??# ## | | ???????H??+ ?# ??# ## " | | ??????????# [[ # ??# ## " | | ??????????# [] # ??# ## " | | ??????????# [] # ### ### " | | ??????????? # # #?# | | ???????????####;; ###+""##### | | ???????????# ![! | | ???????????# [ !!! | | ???????????# % [! | | ???????????# | | ???????????# | | ???????????# | | ???????????# | | ???????????# ######## | | ???????????# * | | ???????????# = | | ???????????# u x [ | | ???????????# k ; "" """ | | ???????????+ @ ; """""" | | ???????????# [ ; """"""" | | ???????????# [ ; """"""" | | ???????????# [ ########## | | ???????????#############;#######?????? | | ??????????????????# #?????? | | ??????????????????# #?????? | | ??????????????????# """""" ####### | | ??????????????????# """""" + | | ??????????????????# """""" ! ####### | | ??????????????????# """""" #?# | | ??????????????????#?? #?# | | ????????????????????"""""" #?# | | ?????????????????????""""" #?# | | ?????????????????????""""" #?# | | ???????????????????????""" #?# | | ??????????????????????? #?# | | ???????????????????????########??##### | | | | | | | | | | | | | | | +----------------------------------------------------+ Best States ------------- Heat Dissipation 51 Energy Generation 16 Energy Capacity 290 Matter Stores 400 Matter Capacity 400 Sight Range 16 Robot Scan Range 16 Terrain Scan Range 14 Terrain Scan Density 10 Corruption Containment 8 Armor Coverage 600 Resistance: KI 30 Utility Shielding 33 Evasion (%) 55 Item Schematics ----------------- Imp. Aluminum Leg | -9/Storage | Hacked Cooling System | -9/Storage | Hacked Robot Schematics ------------------ None Fabricated ------------ Imp. Aluminum Leg | x2 | -6/Factory Repaired ---------- Aluminum Leg | 23% | -9/Storage Studied --------- Carbon-fiber Leg | -6/Factory | Hacked Alien Tech Used ----------------- None Achievements -------------- None Challenges ------------ None Game ------ Seed StructuralImprinterSpiker Manual? 0 Play Time 01:19:14 Cumulative 36.8 hours Start 2026.08.26 @ 15:05:59 End 2026.08.26 @ 16:24:05 Sessions 1 Manual Loads 0 Difficulty Rogue Special Mode None Game No. 39 Rogue 39 Adventurer 0 Explorer 0 Win Type - Total 0 Types 0/0/0/0/0/0/0/0/0/0 Lore% 17 Gallery% 29 Achievement% 22 Wizard Run 0 Options --------- Layout 1 ASCII 0 Keyboard 1 Movement Vi Keybinds 0 Fullscreen 1 Font 24/Smallcaps Map View 50x35 Zoom Use 0% Tactical HUD 1 Map Filters NONE Filters NONE Steam 1 RUN: 4d3d75fd-9d68-4e20-b1c3-e64a81be6b22